bitfinex/quotes_BTCUSD_20230108
["timestamp","ask_amount","ask_price","bid_price","bid_amount"]
[1673165391307,1.92898372,16972.0,16971.0,0.82232415]
[1673165394343,2.28255048,16972.0,16971.0,0.82232415]
[1673165395427,2.28255048,16972.0,16971.0,0.8222604]
[1673165395641,1.92898372,16972.0,16971.0,0.8222604]
[1673165399056,2.28254534,16972.0,16971.0,0.8222604]
[1673165400432,1.92898372,16972.0,16971.0,0.8222604]
[1673165400949,1.9825535,16972.0,16971.0,1.02321967]
[1673165401515,1.9825535,16972.0,16971.0,1.01685267]
[1673165402277,2.2825535,16972.0,16971.0,1.01685267]
[1673165402498,2.2825535,16972.0,16971.0,0.8158934]
[1673165410390,1.92898372,16972.0,16971.0,0.8158934]
[1673165410645,2.28271777,16972.0,16971.0,0.8158934]
[1673165410910,1.92898372,16972.0,16971.0,0.8158934]
[1673165411223,2.28272292,16972.0,16971.0,0.8158934]
[1673165412219,1.92898372,16972.0,16971.0,0.8158934]
[1673165412704,2.28286339,16972.0,16971.0,0.8158934]
[1673165413765,1.92908372,16972.0,16971.0,0.8158934]
[1673165414734,1.92898372,16972.0,16971.0,0.8158934]
[1673165416648,1.92908372,16972.0,16971.0,0.8158934]
[1673165418004,1.98288503,16972.0,16971.0,0.8158934]
[1673165418256,1.98289141,16972.0,16971.0,0.8158934]
[1673165418476,1.98279141,16972.0,16971.0,0.8158934]
[1673165419596,2.28279141,16972.0,16971.0,0.8158934]
[1673165420308,1.98289141,16972.0,16971.0,0.8158934]
[1673165421852,2.28289141,16972.0,16971.0,0.8158934]
[1673165422102,2.28289141,16972.0,16971.0,1.01613931]
[1673165422103,2.28279141,16972.0,16971.0,1.01613931]
[1673165422353,1.98279141,16972.0,16971.0,1.01613931]
[1673165423910,1.98279141,16972.0,16971.0,0.81581674]
[1673165424151,1.98289141,16972.0,16971.0,0.81581674]
[1673165424631,2.28289141,16972.0,16971.0,0.81581674]
[1673165425184,2.28279141,16972.0,16971.0,0.81581674]
[1673165425437,1.98279141,16972.0,16971.0,0.81581674]
[1673165425882,2.28289141,16972.0,16971.0,0.81581674]
[1673165426110,1.98289141,16972.0,16971.0,0.81581674]
[1673165427272,2.28289141,16972.0,16971.0,0.81581674]
[1673165427525,1.98289141,16972.0,16971.0,0.81581674]
[1673165427803,2.28279141,16972.0,16971.0,0.81581674]
[1673165429181,1.98279141,16972.0,16971.0,0.81581674]
[1673165429622,1.98289141,16972.0,16971.0,0.81581674]
[1673165430289,2.28289141,16972.0,16971.0,0.81581674]
[1673165431687,2.28279141,16972.0,16971.0,0.81581674]
[1673165432215,1.98279141,16972.0,16971.0,0.81581674]
[1673165433581,1.98289141,16972.0,16971.0,0.81581674]
[1673165433837,2.28289141,16972.0,16971.0,0.78534732]
[1673165434341,1.92908372,16972.0,16971.0,0.78534732]
[1673165435657,1.92898372,16972.0,16971.0,0.78534732]
[1673165437335,1.92908372,16972.0,16971.0,0.78534732]
[1673165439314,1.92898372,16972.0,16971.0,0.78534732]
[1673165441146,1.92908372,16972.0,16971.0,0.78534732]
[1673165443032,1.92898372,16972.0,16971.0,0.78534732]
[1673165444943,1.92908372,16972.0,16971.0,0.78534732]
[1673165446255,1.48674801,16972.0,16971.0,0.78528648]
[1673165446708,1.48664801,16972.0,16971.0,0.78528648]
[1673165447222,1.92897692,16972.0,16971.0,0.98254836]
[1673165448687,1.92907692,16972.0,16971.0,0.98254836]
[1673165449439,1.92907692,16972.0,16971.0,0.78528648]
[1673165450632,1.92897692,16972.0,16971.0,0.78528648]
[1673165452482,1.92907692,16972.0,16971.0,0.78528648]
[1673165453007,1.48674801,16972.0,16971.0,0.78528648]
[1673165454257,1.48664801,16972.0,16971.0,0.78528648]
[1673165455760,1.92889817,16972.0,16971.0,0.78528648]
[1673165455982,1.48664801,16972.0,16971.0,0.78528648]
[1673165456208,1.48674801,16972.0,16971.0,0.78528648]
[1673165457980,1.48664801,16972.0,16971.0,0.78528648]
[1673165458252,1.92887825,16972.0,16971.0,0.78528648]
[1673165458765,1.92887824,16972.0,16971.0,0.78528648]
[1673165459015,1.48664801,16972.0,16971.0,0.78528648]
[1673165459464,1.92887058,16972.0,16971.0,0.78528648]
[1673165459678,1.48664801,16972.0,16971.0,0.78528648]
[1673165459950,1.92897091,16972.0,16971.0,0.78528648]
[1673165460202,1.92896936,16972.0,16971.0,0.78528648]
[1673165460696,1.92897039,16972.0,16971.0,0.78528648]
[1673165460942,1.9289699,16972.0,16971.0,0.78528648]
[1673165461752,1.9288699,16972.0,16971.0,0.78528648]
[1673165463221,1.98264139,16972.0,16971.0,0.78528648]
[1673165463725,1.98274139,16972.0,16971.0,0.78528648]
[1673165465478,1.98264139,16972.0,16971.0,0.78528648]
[1673165467489,2.28274139,16972.0,16971.0,0.78528648]
[1673165467737,1.98274139,16972.0,16971.0,0.78528648]
[1673165468543,1.98274139,16972.0,16971.0,0.78518634]
[1673165469057,1.98274139,16972.0,16971.0,0.98243821]
[1673165469327,1.98264139,16972.0,16971.0,0.98243821]
[1673165471257,1.98274139,16972.0,16971.0,0.98243821]
[1673165471777,1.98274139,16972.0,16971.0,0.78518634]
[1673165473038,1.98264139,16972.0,16971.0,0.78518634]
[1673165473269,2.28264139,16972.0,16971.0,0.78518634]
[1673165473770,1.98264139,16972.0,16971.0,0.78518634]
[1673165474250,2.01753386,16972.0,16971.0,0.79657852]
[1673165474501,1.5220647,16972.0,16971.0,0.79657852]
[1673165475006,2.05305055,16972.0,16971.0,0.79657852]
[1673165475245,1.5221647,16972.0,16971.0,0.79657852]
[1673165476932,1.5220647,16972.0,16971.0,0.79657852]
[1673165477195,1.48664801,16972.0,16971.0,0.79657852]
[1673165477813,1.48664801,16972.0,16971.0,0.79629152]
[1673165478682,1.48674801,16972.0,16971.0,0.79629152]
[1673165479934,1.92889724,16972.0,16971.0,0.79629152]
[1673165480371,1.92889724,16972.0,16971.0,0.9826827]
[1673165480636,1.92879724,16972.0,16971.0,0.79629152]
[1673165482312,1.92889724,16972.0,16971.0,0.79629152]
[1673165484323,1.92879724,16972.0,16971.0,0.79629152]
[1673165486023,1.92889724,16972.0,16971.0,0.79629152]
[1673165487308,1.62889724,16972.0,16971.0,0.79629152]
[1673165487556,1.98261194,16972.0,16971.0,0.79629152]
[1673165487999,1.98251194,16972.0,16971.0,0.79629152]
[1673165489798,1.98261194,16972.0,16971.0,0.79629152]
[1673165491590,1.98261194,16972.0,16971.0,0.9826827]
[1673165491846,2.24778535,16972.0,16971.0,0.79629152]
[1673165492342,1.65858035,16972.0,16971.0,0.79629152]
[1673165492853,1.21643112,16972.0,16971.0,0.79629152]
[1673165493722,1.21653112,16972.0,16971.0,0.79629152]
[1673165495662,1.21643112,16972.0,16971.0,0.79629152]
[1673165497577,1.21653112,16972.0,16971.0,0.79629152]
[1673165499256,1.21653112,16972.0,16971.0,0.79617865]
[1673165499508,1.21643112,16972.0,16971.0,0.79617865]
[1673165500288,1.21643112,16972.0,16971.0,0.98255854]
[1673165501243,1.21653112,16972.0,16971.0,0.98255854]
[1673165501493,1.21653112,16972.0,16971.0,0.79617865]
[1673165503232,1.21643112,16972.0,16971.0,0.79617865]
[1673165505015,1.21653112,16972.0,16971.0,0.79617865]
[1673165505530,1.39334129,16972.0,16971.0,0.79617865]
[1673165505790,1.39334144,16972.0,16971.0,0.79617865]
[1673165506043,1.21653112,16972.0,16971.0,0.79617865]
[1673165507067,1.21643112,16972.0,16971.0,0.79617865]
[1673165509431,1.03951696,16972.0,16971.0,0.79617865]
[1673165510084,1.21643112,16972.0,16971.0,0.79617865]
[1673165510873,1.21653112,16972.0,16971.0,0.79617865]
[1673165512725,1.21643112,16972.0,16971.0,0.79617865]
[1673165512986,1.3932284,16972.0,16971.0,0.79617865]
[1673165513652,1.21643112,16972.0,16971.0,0.79617865]
[1673165514135,1.39322549,16972.0,16971.0,0.79617865]
[1673165514387,1.39332549,16972.0,16971.0,0.79617865]
[1673165514643,1.03961079,16972.0,16971.0,0.79617865]
[1673165515141,1.21653112,16972.0,16971.0,0.79617865]
[1673165516334,1.21643112,16972.0,16971.0,0.79617865]
[1673165517855,1.3932605,16972.0,16971.0,0.79617865]
[1673165518122,1.21653112,16972.0,16971.0,0.79617865]
[1673165520112,1.21643112,16972.0,16971.0,0.79609029]
[1673165520371,1.21643112,16972.0,16971.0,0.98247018]
[1673165520618,1.65858035,16972.0,16971.0,0.98247018]
[1673165520868,1.65858035,16972.0,16971.0,0.79609029]
[1673165521109,1.6585991,16972.0,16971.0,0.79609029]
[1673165521353,1.39330694,16972.0,16971.0,0.79609029]
[1673165521849,1.39340694,16972.0,16971.0,0.79609029]
[1673165523905,1.39330694,16972.0,16971.0,0.79609029]
[1673165524162,1.33959224,16972.0,16971.0,0.79609029]
[1673165524686,1.69334648,16972.0,16971.0,0.79609029]
[1673165525179,1.39334648,16972.0,16971.0,0.79609029]
[1673165525825,1.3933238,16972.0,16971.0,0.98246135]
[1673165527875,1.3932238,16972.0,16971.0,0.98246135]
[1673165529926,1.3933238,16972.0,16971.0,0.98246135]
[1673165531591,1.3932238,16972.0,16971.0,0.98246135]
[1673165533565,1.3933238,16972.0,16971.0,0.98246135]
[1673165534935,1.3933238,16972.0,16971.0,0.79609029]
[1673165535413,1.3932238,16972.0,16971.0,0.79609029]
[1673165537154,1.3933238,16972.0,16971.0,0.79609029]
[1673165539264,1.3932238,16972.0,16971.0,0.79609029]
[1673165540986,1.3933238,16972.0,16971.0,0.79609029]
[1673165542655,1.3932238,16972.0,16971.0,0.79609029]
[1673165544551,1.03956956,16972.0,16971.0,0.79609029]
[1673165545330,1.03946956,16972.0,16971.0,0.79609029]
[1673165546045,1.03946956,16972.0,16971.0,0.98246135]
[1673165546531,1.39336331,16972.0,16971.0,0.98246135]
[1673165548313,1.39326331,16972.0,16971.0,0.9823649]
[1673165550220,1.39336331,16972.0,16971.0,0.9823649]
[1673165551491,1.39336331,16972.0,16971.0,0.79599384]
[1673165552233,1.3931761,16972.0,16971.0,0.79599384]
[1673165554099,1.3932761,16972.0,16971.0,0.79599384]
[1673165555960,1.3931761,16972.0,16971.0,0.79599384]
[1673165556668,1.33938235,16972.0,16971.0,0.79599384]
[1673165556883,1.03938235,16972.0,16971.0,0.79599384]
[1673165557356,1.39322795,16972.0,16971.0,0.79599384]
[1673165557611,1.39322758,16972.0,16971.0,0.79599384]
[1673165557858,1.03948235,16972.0,16971.0,0.79599384]
[1673165559895,1.03938235,16972.0,16971.0,0.79599384]
[1673165561114,1.39323441,16972.0,16971.0,0.79599384]
[1673165561357,1.03938235,16972.0,16971.0,0.79599384]
[1673165561629,1.03948235,16972.0,16971.0,0.79599384]
[1673165562386,1.33948235,16972.0,16971.0,0.79599384]
[1673165562750,1.03948235,16972.0,16971.0,0.79599384]
[1673165563480,1.03938235,16972.0,16971.0,0.79599384]
[1673165564842,1.33938235,16972.0,16971.0,0.79599384]
[1673165565355,1.33948235,16972.0,16971.0,0.79599384]
[1673165565702,1.03948235,16972.0,16971.0,0.79599384]
[1673165566701,1.33948235,16972.0,16971.0,0.79599384]
[1673165566922,1.92868735,16972.0,16971.0,0.79599384]
[1673165567201,1.62858735,16972.0,16971.0,0.79599384]
[1673165569192,1.62868735,16972.0,16971.0,0.79599384]
[1673165570953,1.62858735,16972.0,16971.0,0.79599384]
[1673165572941,1.62868735,16972.0,16971.0,0.79599384]
[1673165574141,1.52195481,16972.0,16971.0,0.08576822]
[1673165574393,2.11115981,16972.0,16971.0,0.08576822]
[1673165574676,2.64204566,16972.0,16971.0,0.08576822]
[1673165575131,2.64194566,16972.0,16971.0,0.08576822]
[1673165575132,2.64194566,16972.0,16971.0,0.08565413]
[1673165576676,2.64204566,16972.0,16971.0,0.08565413]
[1673165578490,2.64194566,16972.0,16971.0,0.08565413]
[1673165578735,2.11105981,16972.0,16971.0,0.08565413]
[1673165579742,2.64194566,16972.0,16971.0,0.08565413]
[1673165580030,2.11105981,16972.0,16971.0,0.08565413]
[1673165580247,2.64194566,16972.0,16971.0,0.08565413]
[1673165580512,2.64204566,16972.0,16971.0,0.08565413]
[1673165582332,2.64194566,16972.0,16971.0,0.08565413]
[1673165584111,2.11115981,16972.0,16971.0,0.08565413]
[1673165585979,2.11105981,16972.0,16971.0,0.08565413]
[1673165587945,2.11115981,16972.0,16971.0,0.08565413]
[1673165589887,2.11105981,16972.0,16971.0,0.08565413]
[1673165590923,2.64194566,16972.0,16971.0,0.08565413]
[1673165591407,2.11105981,16972.0,16971.0,0.08565413]
[1673165591662,2.11115981,16972.0,16971.0,0.08565413]
[1673165592634,2.64204566,16972.0,16971.0,0.08565413]
[1673165593618,2.64194566,16972.0,16971.0,0.08565413]
[1673165595502,2.64204566,16972.0,16971.0,0.08565413]
[1673165595765,2.14204566,16972.0,16971.0,0.08565413]
[1673165597293,2.14194566,16972.0,16971.0,0.08565413]
[1673165599090,2.14204566,16972.0,16971.0,0.08565413]
[1673165601015,2.14194566,16972.0,16971.0,0.08565413]
[1673165602945,2.14204566,16972.0,16971.0,0.08565413]
[1673165604698,2.14194566,16972.0,16971.0,0.08565413]
[1673165606758,2.14204566,16972.0,16971.0,0.08565413]
[1673165608629,2.14194566,16972.0,16971.0,0.08565413]
[1673165610397,2.14204566,16972.0,16971.0,0.08565413]
[1673165611938,1.61115981,16972.0,16971.0,0.08565413]
[1673165612419,1.61105981,16972.0,16971.0,0.08565413]
[1673165613939,1.61105981,16972.0,16971.0,0.04030123]
[1673165614206,1.61115981,16972.0,16971.0,0.04030123]
[1673165616372,1.61105981,16972.0,16971.0,0.04030123]
[1673165617328,1.61105981,16972.0,16971.0,0.04023541]
[1673165618106,1.61115981,16972.0,16971.0,0.04023541]
[1673165619994,1.61105981,16972.0,16971.0,0.04023541]
[1673165621430,1.6109578,16972.0,16971.0,0.04023541]
[1673165621968,1.6110578,16972.0,16971.0,0.04023541]
[1673165623694,1.6109578,16972.0,16971.0,0.04023541]
[1673165624940,1.6109578,16972.0,16970.0,0.50071952]
[1673165625192,0.83070882,16971.0,16970.0,0.50071952]
[1673165625441,2.59842882,16971.0,16970.0,0.50071952]
[1673165625667,2.60657509,16971.0,16970.0,0.50061952]
[1673165627543,2.60657509,16971.0,16970.0,0.54161952]
[1673165636587,2.64199178,16971.0,16970.0,0.54161952]
[1673165641382,2.63795878,16971.0,16970.0,0.54161952]
[1673165641659,2.63795878,16971.0,16970.0,0.65812549]
[1673165643220,2.63795878,16971.0,16970.0,0.54161952]
[1673165646444,2.63795878,16971.0,16970.0,0.54133258]
[1673165654111,2.55950071,16971.0,16970.0,0.54133258]
[1673165671795,2.55950071,16971.0,16970.0,0.58405425]
[1673165676724,2.55950071,16971.0,16970.0,0.58393887]
[1673165697074,2.02879189,16971.0,16970.0,0.58393887]
[1673165698070,1.9933752,16971.0,16970.0,0.58393887]
[1673165698317,1.9933752,16971.0,16970.0,0.58384339]
[1673165701041,1.9933752,16971.0,16970.0,0.54112172]
[1673165701534,1.9870212,16971.0,16970.0,0.54112172]
[1673165701745,1.9870212,16971.0,16970.0,0.58384339]
[1673165702979,1.9870212,16971.0,16970.0,0.54112172]
[1673165703874,1.9870212,16971.0,16970.0,0.58384339]
[1673165704897,1.9870212,16971.0,16970.0,0.54112172]
[1673165705935,1.9870212,16971.0,16970.0,0.58384339]
[1673165706690,1.9870212,16971.0,16970.0,0.54112172]
[1673165706947,2.51785023,16971.0,16970.0,0.54112172]
[1673165707307,1.9870212,16971.0,16970.0,0.54112172]
[1673165707596,2.5178422,16971.0,16970.0,0.54112172]
[1673165707838,1.9870212,16971.0,16970.0,0.54112172]
[1673165708090,1.9870212,16971.0,16970.0,0.58384339]
[1673165709070,1.9870212,16971.0,16970.0,0.54112172]
[1673165709964,2.51782678,16971.0,16970.0,0.58384339]
[1673165711021,2.51782678,16971.0,16970.0,0.54112172]
[1673165711462,2.51782036,16971.0,16970.0,0.54112172]
[1673165711933,2.51782036,16971.0,16970.0,0.58384339]
[1673165712724,1.9870212,16971.0,16970.0,0.58384339]
[1673165712937,1.9870212,16971.0,16970.0,0.54112172]
[1673165713154,2.51781515,16971.0,16970.0,0.54112172]
[1673165713407,1.9870212,16971.0,16970.0,0.54112172]
[1673165714029,1.9870212,16971.0,16970.0,0.58384339]
[1673165714778,1.9870212,16971.0,16970.0,0.54112172]
[1673165715824,1.9870212,16971.0,16970.0,0.58384339]
[1673165716973,1.9870212,16971.0,16970.0,0.54112172]
[1673165718012,1.9870212,16971.0,16970.0,0.58384339]
[1673165718796,1.9870212,16971.0,16970.0,0.54112172]
[1673165719778,1.9870212,16971.0,16970.0,0.58384339]
[1673165721015,1.9870212,16971.0,16970.0,0.54112172]
[1673165722038,2.02243789,16971.0,16970.0,0.58384339]
[1673165722971,2.02243789,16971.0,16970.0,0.54112172]
[1673165723949,2.02243789,16971.0,16970.0,0.58384339]
[1673165724920,2.02243789,16971.0,16970.0,0.54112172]
[1673165725959,2.02243789,16971.0,16970.0,0.58376789]
[1673165726926,2.02243789,16971.0,16970.0,0.54104622]
[1673165746011,2.02243789,16971.0,16970.0,0.54093227]
[1673165747916,2.02243789,16971.0,16970.0,1.24983629]
[1673165748373,2.5533276,16971.0,16970.0,1.24983629]
[1673165749646,2.5533276,16971.0,16970.0,0.54093227]
[1673165759834,2.02243789,16971.0,16970.0,0.54093227]
[1673165760766,2.02243789,16971.0,16970.0,0.55390757]
[1673165761088,2.55324052,16971.0,16970.0,0.55390757]
[1673165761893,2.55324052,16971.0,16970.0,0.54093227]
[1673165762924,2.55324052,16971.0,16970.0,0.55390757]
[1673165766939,2.55324052,16971.0,16970.0,0.54093227]
[1673165767970,2.55324052,16971.0,16970.0,0.55390757]
[1673165768922,2.55324052,16971.0,16970.0,0.54093227]
[1673165769436,2.55324052,16971.0,16970.0,0.54086118]
[1673165769951,2.55324052,16971.0,16970.0,0.55383648]
[1673165770212,2.02243789,16971.0,16970.0,0.55383648]
[1673165770733,2.55321349,16971.0,16970.0,0.55383648]
[1673165770982,2.55321349,16971.0,16970.0,0.54086118]
[1673165771456,2.02243789,16971.0,16970.0,0.54086118]
[1673165771704,2.55321345,16971.0,16970.0,0.54086118]
[1673165771964,2.55321345,16971.0,16970.0,0.55383648]
[1673165772229,2.02243789,16971.0,16970.0,0.55383648]
[1673165774535,2.02243789,16971.0,16970.0,0.51283648]
[1673165774782,2.02243789,16971.0,16970.0,0.62583648]
[1673165774990,2.01955629,16971.0,16970.0,0.62583648]
[1673165787949,1.9841396,16971.0,16970.0,0.62583648]
[1673165795903,1.9841396,16971.0,16970.0,0.61286118]
[1673165796921,1.9841396,16971.0,16970.0,0.62583648]
[1673165797804,1.9841396,16971.0,16970.0,0.61286118]
[1673165798908,1.9841396,16971.0,16970.0,0.62583648]
[1673165799166,1.9841396,16971.0,16970.0,0.625775]
[1673165799922,1.9841396,16971.0,16970.0,0.6127997]
[1673165800925,1.9841396,16971.0,16970.0,0.625775]
[1673165801870,1.9841396,16971.0,16970.0,0.6127997]
[1673165802818,1.9841396,16971.0,16970.0,0.625775]
[1673165803855,1.9841396,16971.0,16970.0,0.6127997]
[1673165804912,1.9841396,16971.0,16970.0,0.625775]
[1673165805996,1.9841396,16971.0,16970.0,0.6127997]
[1673165806821,1.9841396,16971.0,16970.0,0.625775]
[1673165807980,1.9841396,16971.0,16970.0,0.6127997]
[1673165809095,1.9841396,16971.0,16970.0,0.625775]
[1673165809831,1.9841396,16971.0,16970.0,0.6127997]
[1673165810332,1.9841996,16971.0,16970.0,0.6127997]
[1673165810815,1.9841996,16971.0,16970.0,0.625775]
[1673165811817,1.9841996,16971.0,16970.0,0.6127997]
[1673165813051,1.9841996,16971.0,16970.0,0.625775]
[1673165813802,1.9841996,16971.0,16970.0,0.6127997]
[1673165814912,1.9841996,16971.0,16970.0,0.625775]
[1673165815945,1.9841996,16971.0,16970.0,0.6127997]
[1673165816939,1.9841996,16971.0,16970.0,0.625775]
[1673165817809,1.9841996,16971.0,16970.0,0.6127997]
[1673165818934,1.9841996,16971.0,16970.0,0.625775]
[1673165819955,1.9841996,16971.0,16970.0,0.6127997]
[1673165820976,1.9841996,16971.0,16970.0,0.625775]
[1673165821666,1.9841996,16971.0,16970.0,1.33467902]
[1673165821896,2.51505646,16971.0,16970.0,1.51212233]
[1673165822138,2.51505646,16971.0,16970.0,1.32170372]
[1673165822836,2.51505646,16971.0,16970.0,1.33467289]
[1673165823368,2.51505646,16971.0,16970.0,1.33456646]
[1673165823822,2.51505646,16971.0,16970.0,1.32159729]
[1673165824930,2.51505646,16971.0,16970.0,1.33456646]
[1673165825415,2.51505646,16971.0,16970.0,0.53456646]
[1673165831292,2.5149733,16971.0,16970.0,0.53456646]
[1673165833777,2.5149733,16971.0,16970.0,0.64497381]
[1673165834261,2.5149733,16971.0,16970.0,0.53456646]
[1673165841659,1.98411644,16971.0,16970.0,0.53456646]
[1673165843550,2.5149733,16971.0,16970.0,0.53456646]
[1673165844058,1.98411644,16971.0,16970.0,0.53456646]
[1673165844287,2.5149733,16971.0,16970.0,0.53456646]
[1673165844533,1.98411644,16971.0,16970.0,0.53456646]
[1673165845222,1.98411644,16971.0,16970.0,0.53491947]
[1673165845511,2.5149733,16971.0,16970.0,0.53491947]
[1673165845773,2.5149733,16971.0,16970.0,0.53456646]
[1673165846563,1.98411644,16971.0,16970.0,0.53456646]
[1673165848638,2.5149733,16971.0,16970.0,0.53456646]
[1673165848895,1.98411644,16971.0,16970.0,0.53456646]
[1673165849410,2.5149733,16971.0,16970.0,0.53456646]
[1673165855800,2.5149733,16971.0,16970.0,0.53445028]
[1673165856323,2.5149733,16971.0,16970.0,0.64484602]
[1673165858447,2.5149733,16971.0,16970.0,0.64519903]
[1673165858945,2.5149733,16971.0,16970.0,0.53480329]
[1673165859922,2.5149733,16971.0,16970.0,0.53445028]
[1673165860164,2.5149733,16971.0,16970.0,0.53480329]
[1673165860418,2.5149733,16971.0,16970.0,0.53445028]
[1673165863883,2.5149733,16971.0,16970.0,0.53480329]
[1673165864111,2.5149733,16971.0,16970.0,0.53445028]
[1673165878293,2.5149733,16971.0,16970.0,0.53437281]
[1673165880030,2.54224372,16971.0,16970.0,0.71925557]
[1673165880281,2.61592804,16971.0,16970.0,0.01296917]
[1673165880564,2.61590189,16971.0,16970.0,0.01296917]
[1673165881032,2.61591282,16971.0,16970.0,0.01296917]
[1673165881291,2.01868146,16971.0,16970.0,0.01296917]
[1673165882021,2.01868146,16971.0,16968.0,0.54860768]
[1673165882265,0.53086359,16969.0,16968.0,0.54860768]
[1673165882524,2.29879059,16969.0,16968.0,0.54860768]
[1673165882768,2.63420728,16969.0,16968.0,0.5]
[1673165883529,1.75489828,16969.0,16968.0,0.58]
[1673165883786,1.98429029,16969.0,16968.0,1.24603585]
[1673165884036,1.98429029,16969.0,16968.0,0.58]
[1673165884301,1.80747206,16969.0,16968.0,1.0929568]
[1673165884549,1.21816138,16969.0,16968.0,1.20725445]
[1673165884808,1.04133688,16969.0,16968.0,1.81387745]
[1673165885059,0.01,16969.0,16968.0,1.81387745]
[1673165885313,0.01,16969.0,16968.0,2.52016385]
[1673165885565,0.01,16969.0,16968.0,3.28629299]
[1673165885812,0.01,16969.0,16968.0,3.69885185]
[1673165886059,0.01,16969.0,16968.0,3.87563699]
[1673165886314,0.01,16969.0,16968.0,3.69885185]
[1673165886569,0.00463,16969.0,16968.0,3.69885185]
[1673165887607,0.00463,16969.0,16968.0,3.10950785]
[1673165892788,0.00463,16969.0,16968.0,2.52016385]
[1673165898487,0.00463,16969.0,16968.0,2.52009725]
[1673165917195,0.00463,16969.0,16968.0,2.52045031]
[1673165922332,0.18143763,16969.0,16968.0,2.52045031]
[1673165925507,0.18143763,16969.0,16968.0,9.52045031]
[1673165925759,0.44665788,16969.0,16968.0,9.52045031]
[1673165932141,0.44665788,16969.0,16968.0,9.69723545]
[1673165932728,0.44665788,16969.0,16968.0,9.52045031]
[1673165932936,0.44665788,16969.0,16968.0,9.53526462]
[1673165933661,0.44665788,16969.0,16968.0,9.71204976]
[1673165934798,0.18143763,16969.0,16968.0,9.71204976]
[1673165935791,0.44665788,16969.0,16968.0,9.71204976]
[1673165936410,0.18143763,16969.0,16968.0,9.71204976]
[1673165936664,0.44665788,16969.0,16968.0,9.71204976]
[1673165937492,0.18143763,16969.0,16968.0,9.71204976]
[1673165941513,0.44665788,16969.0,16968.0,9.71204976]
[1673165942020,0.44665788,16969.0,16968.0,9.53526462]
[1673165942312,0.44665788,16969.0,16968.0,9.71204976]
[1673165942569,0.44665788,16969.0,16968.0,9.60271868]
[1673165943155,0.18143763,16969.0,16968.0,9.60271868]
[1673165943407,0.44665788,16969.0,16968.0,9.60271868]
[1673165943657,0.18143763,16969.0,16968.0,9.60271868]
[1673165944007,0.18143763,16969.0,16968.0,10.19659581]
[1673165944993,0.44665788,16969.0,16968.0,9.42558048]
[1673165948680,0.44665788,16969.0,16968.0,9.42593354]
[1673165953490,0.80029001,16969.0,16968.0,9.42558048]
[1673165953830,0.62348238,16969.0,16968.0,8.81895748]
[1673165954013,0.62348238,16969.0,16968.0,8.81889525]
[1673165955277,0.62348238,16969.0,16968.0,9.42551825]
[1673165955527,0.62348238,16969.0,16968.0,8.81889525]
[1673165956043,0.80030229,16969.0,16968.0,8.81889525]
[1673165956293,0.80030229,16969.0,16968.0,8.11260885]
[1673165956545,0.80030229,16969.0,16968.0,9.42551825]
[1673165956807,1.06569083,16969.0,16968.0,9.42551825]
[1673165957062,0.80030229,16969.0,16968.0,9.42587131]
[1673165957323,0.62365066,16969.0,16968.0,9.42587131]
[1673165967651,0.8005183,16969.0,16968.0,9.42587131]
[1673165968131,0.62365066,16969.0,16968.0,9.42587131]
[1673165973230,0.62365066,16969.0,16968.0,9.42576558]
[1673165974443,0.62365066,16969.0,16968.0,10.01964271]
[1673165976515,0.62365066,16969.0,16968.0,9.42576558]
[1673165979628,0.62365066,16969.0,16968.0,8.71947918]
[1673165980901,0.62365066,16969.0,16968.0,9.42576558]
[1673165984894,0.80030229,16969.0,16968.0,8.71912612]
[1673165985139,0.80030229,16969.0,16968.0,8.11250312]
[1673165985385,0.80030229,16969.0,16968.0,8.71912612]
[1673165985727,1.38961129,16969.0,16968.0,8.71912612]
[1673165985920,1.38961129,16969.0,16968.0,8.11250312]
[1673165986159,1.38961129,16969.0,16968.0,8.71912612]
[1673165986687,1.38961129,16969.0,16968.0,8.11250312]
[1673165987471,1.38961129,16969.0,16968.0,8.71912612]
[1673165988252,1.38961129,16969.0,16968.0,8.11250312]
[1673165989001,1.38961129,16969.0,16968.0,8.71947918]
[1673165989245,1.38961129,16969.0,16968.0,8.11285618]
[1673165989503,1.38961129,16969.0,16968.0,8.71947918]
[1673165989769,1.38961129,16969.0,16968.0,8.11285618]
[1673165990718,1.38961129,16969.0,16968.0,8.71947918]
[1673165991262,1.38961129,16969.0,16968.0,8.11285618]
[1673165991531,1.38961129,16969.0,16968.0,8.71947918]
[1673165991789,1.38961129,16969.0,16968.0,8.11285618]
[1673165992304,1.38961129,16969.0,16968.0,8.71947918]
[1673165992559,1.38961129,16969.0,16968.0,8.11285618]
[1673165992817,1.38961129,16969.0,16968.0,8.71947918]
[1673165993081,1.38961129,16969.0,16968.0,8.11285618]
[1673165994863,1.38961129,16969.0,16968.0,8.71947918]
[1673165995117,1.38961129,16969.0,16968.0,8.11250312]
[1673165995925,1.38961129,16969.0,16968.0,8.70638025]
[1673165996442,1.38961129,16969.0,16968.0,9.31300325]
[1673165996721,1.38961129,16969.0,16968.0,8.70638025]
[1673165997236,1.38961129,16969.0,16968.0,9.31300325]
[1673165997534,1.38961129,16969.0,16968.0,8.70630183]
[1673165998362,1.38961129,16969.0,16968.0,8.70665489]
[1673166000342,1.38961129,16969.0,16968.0,8.70630183]
[1673166000825,1.38961129,16969.0,16968.0,9.31292483]
[1673166001058,1.38961129,16969.0,16968.0,8.70630183]
[1673166001781,1.38961129,16969.0,16968.0,9.31292483]
[1673166002636,1.38961129,16969.0,16968.0,8.70630183]
[1673166002884,1.38961129,16969.0,16968.0,9.31292483]
[1673166003365,1.38961129,16969.0,16968.0,8.70630183]
[1673166004122,1.03597916,16969.0,16968.0,8.70665489]
[1673166004376,1.03597916,16969.0,16968.0,8.11277776]
[1673166005376,1.03597916,16969.0,16968.0,8.71940076]
[1673166005871,1.03597916,16969.0,16968.0,8.11277776]
[1673166006205,1.38977879,16969.0,16968.0,8.71940076]
[1673166006407,1.38977879,16969.0,16968.0,8.1124247]
[1673166006625,1.03597916,16969.0,16968.0,8.1124247]
[1673166006874,1.38977927,16969.0,16968.0,8.1124247]
[1673166007091,1.38977927,16969.0,16968.0,8.7190477]
[1673166007579,1.03597916,16969.0,16968.0,8.1124247]
[1673166009830,1.03591812,16969.0,16968.0,8.1124247]
[1673166010951,1.03591812,16969.0,16968.0,8.70630183]
[1673166011424,1.03591812,16969.0,16968.0,8.1124247]
[1673166011663,1.03591812,16969.0,16968.0,8.7190477]
[1673166011918,1.03591812,16969.0,16968.0,8.1124247]
[1673166012683,1.03591812,16969.0,16968.0,8.7190477]
[1673166012917,1.03591812,16969.0,16968.0,8.1124247]
[1673166013661,1.03591812,16969.0,16968.0,8.7190477]
[1673166014641,1.03591812,16969.0,16968.0,8.1124247]
[1673166014892,1.03591812,16969.0,16968.0,8.7190477]
[1673166015608,1.03591812,16969.0,16968.0,8.1124247]
[1673166017266,1.03591812,16969.0,16968.0,8.7190477]
[1673166017492,1.03591812,16969.0,16968.0,8.1124247]
[1673166018923,1.03591812,16969.0,16968.0,8.7190477]
[1673166019174,1.03591812,16969.0,16968.0,8.1124247]
[1673166019437,1.03591812,16969.0,16968.0,8.70630183]
[1673166019703,1.03591812,16969.0,16968.0,9.31292483]